bitfinex/quotes_SOLUSD_20250107
["timestamp","ask_amount","ask_price","bid_price","bid_amount"]
[1736273186897,48.776884,206.81,206.69,16.61635548]
[1736273189695,43.776884,206.81,206.69,16.61635548]
[1736273190415,23.776884,206.81,206.69,16.61635548]
[1736273190995,20.0,206.79,206.69,16.61635548]
[1736273191406,20.0,206.8,206.69,16.61635548]
[1736273193217,20.0,206.8,206.7,8.99696708]
[1736273194099,20.0,206.8,206.69,25.61332256]
[1736273194298,2.94,206.82,206.7,8.99696708]
[1736273194501,2.94,206.84,206.72,12.9924]
[1736273200425,20.0,206.8,206.72,12.9924]
[1736273201021,20.0,206.8,206.69,16.61635548]
[1736273202529,22.94,206.84,206.69,25.61332256]
[1736273202722,1.90244928,206.86,206.72,8.99696708]
[1736273202907,1.91709239,206.91,206.78,8.99696708]
[1736273203112,2.94,206.9,206.78,8.99696708]
[1736273203626,22.94,206.9,206.77,8.99696708]
[1736273203827,2.94,206.9,206.78,8.99696708]
[1736273204128,2.94,206.9,206.77,8.99696708]
[1736273204739,2.94,206.9,206.78,8.99696708]
[1736273204929,2.94,206.9,206.77,8.99696708]
[1736273205236,20.0,206.91,206.77,8.99696708]
[1736273205419,22.94,206.91,206.77,8.99696708]
[1736273207236,22.94,206.91,206.78,8.99696708]
[1736273207449,1.96641658,206.93,206.81,3.1192]
[1736273207625,2.94,206.92,206.81,3.1192]
[1736273207827,2.94,206.92,206.81,12.11616708]
[1736273208019,2.94,206.92,206.82,12.1621]
[1736273208214,82.3,206.95,206.82,12.1621]
[1736273208519,20.0,206.92,206.82,12.1621]
[1736273210524,82.3,207.03,206.87,12.09476708]
[1736273210726,2.94,207.02,206.87,12.09476708]
[1736273210919,2.94,207.02,206.87,3.0978]
[1736273211119,20.0,207.0,206.87,12.09476708]
[1736273211320,20.0,207.0,206.87,3.0978]
[1736273211747,2.94,207.02,206.87,3.0978]
[1736273212039,20.0,206.98,206.87,3.0978]
[1736273215144,0.12549,206.97,206.87,3.0978]
[1736273216329,0.12549,206.93,206.87,3.0978]
[1736273216739,0.12549,206.93,206.82,12.1621]
[1736273216939,3.04549,206.93,206.82,12.1621]
[1736273217134,0.12549,206.88,206.82,12.1621]
[1736273220058,0.12549,206.88,206.81,3.3649]
[1736273220553,2.92,206.93,206.81,3.3649]
[1736273220554,0.12549,206.84,206.81,3.3649]
[1736273220762,0.12549,206.84,206.81,17.39444076]
[1736273220941,12.7726,207.0,206.82,14.02954076]
[1736273221142,2.92,206.96,206.85,14.02954076]
[1736273221844,0.12549,206.95,206.85,14.02954076]
[1736273222460,0.12549,206.95,206.83,14.75447157]
[1736273222761,0.12549,206.91,206.81,3.3649]
[1736273223064,0.12549,206.91,206.81,17.39444076]
[1736273223366,0.12549,206.91,206.81,3.3649]
[1736273225658,0.12549,206.91,206.81,17.39444076]
[1736273225969,0.12549,206.91,206.81,3.3649]
[1736273229647,87.3,207.03,206.83,14.02954076]
[1736273229847,87.3,207.03,206.84,14.02954076]
[1736273229848,2.92,206.99,206.84,14.02954076]
[1736273230068,23.902374,206.99,206.85,14.02954076]
[1736273230282,2.92,206.98,206.85,14.02954076]
[1736273230483,20.0,206.96,206.84,14.75447221]
[1736273230659,0.12549,206.95,206.84,0.72493145]
[1736273230858,0.12549,206.95,206.83,14.02954076]
[1736273231577,20.12549,206.97,206.83,14.02954076]
[1736273231979,20.12549,206.97,206.84,14.02954076]
[1736273232574,20.12549,206.97,206.83,14.75445045]
[1736273232887,20.12549,206.97,206.84,14.02954076]
[1736273233173,20.12549,206.97,206.85,14.02954076]
[1736273233361,20.12549,206.97,206.86,14.02954076]
[1736273233566,0.12549,206.97,206.87,14.02954076]
[1736273234067,2.92,207.01,206.89,3.2112]
[1736273234979,0.12549,206.98,206.89,3.2112]
[1736273235197,0.12549,207.01,206.9,14.02954076]
[1736273235480,20.0,207.0,206.9,14.75426274]
[1736273236059,20.12549,207.02,206.9,14.75426274]
[1736273236387,0.12549,207.0,206.91,14.02954076]
[1736273237700,17.8118088,207.05,206.9,34.02954076]
[1736273237701,0.12549,207.01,206.9,34.02954076]
[1736273238003,0.12549,207.01,206.89,17.24074076]
[1736273238292,0.12549,207.01,206.89,3.2112]
[1736273239194,0.12549,207.01,206.89,17.24074076]
[1736273239400,0.12549,207.01,206.9,14.02954076]
[1736273239580,0.12549,207.01,206.89,17.24074076]
[1736273239779,0.12549,207.01,206.89,3.2112]
[1736273240769,23.902374,207.01,206.89,3.2112]
[1736273241190,0.12549,207.01,206.89,3.2112]
[1736273248300,0.12549,207.01,206.87,21.80459707]
[1736273248301,0.12549,206.97,206.84,3.086]
[1736273248487,0.12549,206.97,206.85,8.97829707]
[1736273248677,0.12549,206.97,206.84,3.086]
[1736273249202,0.12549,206.93,206.85,2.64450573]
[1736273249908,0.12549,206.93,206.86,2.64450573]
[1736273250387,0.12549,206.93,206.83,8.97829707]
[1736273250588,0.12549,206.93,206.82,32.75518107]
[1736273250992,0.12549,206.93,206.83,2.64632809]
[1736273251386,0.12549,206.9,206.83,2.64632809]
[1736273251604,0.12549,206.87,206.84,2.64632809]
[1736273252185,3.2537,206.91,206.83,8.97829707]
[1736273252381,20.0,206.92,206.81,0.72504032]
[1736273252592,20.0,206.94,206.84,8.97829707]
[1736273252813,0.12549,206.93,206.84,8.97829707]
[1736273252988,0.12549,206.93,206.84,9.70324729]
[1736273253308,0.12549,206.93,206.84,14.75743601]
[1736273253504,0.12549,206.93,206.78,3.64495597]
[1736273253708,0.12549,206.93,206.81,14.03248579]
[1736273253914,0.12549,206.93,206.81,14.75748508]
[1736273254085,0.12549,206.93,206.82,2.64846606]
[1736273254285,0.12549,206.93,206.82,16.68095185]
[1736273254604,0.12549,206.93,206.83,2.64846606]
[1736273254810,0.12549,206.89,206.83,2.64846606]
[1736273255107,3.46689,206.87,206.83,2.64846606]
[1736273255306,3.46689,206.87,206.77,2.64846606]
[1736273255891,3.46689,206.87,206.75,2.92]
[1736273256106,3.46689,206.87,206.71,14.03248579]
[1736273256293,3.46689,206.87,206.7,14.03248579]
[1736273256602,0.12549,206.82,206.76,2.64873176]
[1736273257128,0.12549,206.82,206.71,14.03248579]
[1736273257129,0.12549,206.86,206.74,14.03248579]
[1736273257281,0.12549,206.86,206.73,37.80936979]
[1736273257704,0.12549,206.84,206.75,2.64873176]
[1736273257904,0.12549,206.84,206.75,16.68121755]
[1736273258101,0.12549,206.84,206.77,14.03248579]
[1736273258411,2.92,206.91,206.81,14.03248579]
[1736273258593,3.3149,206.92,206.78,3.2232]
[1736273258594,3.3149,206.92,206.84,14.03248579]
[1736273258907,3.3149,206.92,206.85,14.03248579]
[1736273259311,3.3149,206.92,206.84,14.03248579]
[1736273259494,3.3149,206.92,206.85,14.03248579]
[1736273259701,15.508,206.98,206.87,14.03248579]
[1736273259903,15.508,206.98,206.89,14.03248579]
[1736273260422,0.12549,206.97,206.89,14.03248579]
[1736273261797,0.12549,206.97,206.88,14.03248579]
[1736273262113,0.12549,206.97,206.86,37.80936979]
[1736273262416,0.12549,206.97,206.85,20.0]
[1736273262711,0.12549,206.97,206.85,34.03248579]
[1736273263298,0.12549,206.97,206.86,16.67759677]
[1736273263811,0.12549,206.94,206.87,2.64511098]
[1736273264515,0.12549,206.94,206.85,14.03248579]
[1736273265205,15.508,206.98,206.88,14.03248579]
[1736273265720,0.12549,206.97,206.87,14.03248579]
[1736273266521,0.12549,206.97,206.88,2.64580722]
[1736273266834,0.12549,206.97,206.87,14.03248579]
[1736273267129,0.12549,206.97,206.82,2.92]
[1736273267333,0.12549,206.97,206.86,14.03248579]
[1736273267646,0.12549,206.97,206.89,14.03248579]
[1736273268721,0.12549,206.97,206.87,0.72475199]
[1736273268722,0.12549,206.97,206.9,14.03248579]
[1736273268938,0.12549,206.97,206.89,14.03248579]
[1736273269822,36.3106,207.03,206.92,14.03248579]
[1736273270134,16.3106,207.03,206.91,37.80936979]
[1736273270341,0.12549,207.02,206.91,37.80936979]
[1736273270637,0.12549,207.02,206.93,23.776884]
[1736273271011,0.12549,207.02,206.94,14.03248579]
[1736273271216,0.12549,207.02,206.95,14.03248579]
[1736273273818,16.3106,207.03,206.93,14.03248579]
[1736273274731,16.3106,207.03,206.92,14.03248579]
[1736273275222,16.3106,207.03,206.93,14.03248579]
[1736273275423,16.3106,207.03,206.92,14.03248579]
[1736273275625,16.3106,207.03,206.93,2.64401099]
[1736273276144,16.3106,207.03,206.92,14.03248579]
[1736273276327,16.3106,207.03,206.91,14.03248579]
[1736273276525,16.3106,207.03,206.94,14.03248579]
[1736273276730,15.4138,207.08,206.98,14.03248579]
[1736273276932,15.4138,207.08,207.0,14.03248579]
[1736273277247,15.4138,207.08,206.96,23.776884]
[1736273277447,15.4138,207.08,206.97,14.03248579]
[1736273277648,15.4138,207.08,206.98,14.03248579]
[1736273278314,15.4138,207.08,206.97,14.03248579]
[1736273278516,15.4138,207.08,206.96,23.776884]
[1736273278517,15.4138,207.08,206.98,14.03248579]
[1736273279243,15.4138,207.08,206.96,23.776884]
[1736273279631,15.4138,207.08,206.96,335.776884]
[1736273279824,15.4138,207.08,206.96,37.80936979]
[1736273280238,15.4138,207.08,206.97,14.03248579]
[1736273281140,20.0,207.05,206.93,14.03248579]
[1736273282041,20.0,207.05,206.95,23.776884]
[1736273282427,20.0,207.05,206.94,2.6406413]
[1736273282728,20.0,207.05,206.93,14.03248579]
[1736273283740,20.0,207.05,206.92,37.80936979]
[1736273283942,20.0,207.05,206.93,14.03248579]
[1736273284142,20.0,207.05,206.94,14.03248579]
[1736273284841,20.0,207.05,206.95,37.80936979]
[1736273285047,20.0,207.05,206.96,14.03248579]
[1736273285354,15.4138,207.08,206.97,14.03248579]
[1736273285649,15.4138,207.08,206.96,0.72446672]
[1736273285854,15.4138,207.08,206.97,14.03248579]
[1736273286027,15.4138,207.08,206.95,14.03248579]
[1736273286229,15.4138,207.08,206.96,23.776884]
[1736273286430,15.4138,207.08,206.96,37.80936979]
[1736273287136,15.4138,207.08,206.97,14.03248579]
[1736273287534,15.4138,207.08,206.96,37.80936979]
[1736273287737,20.0,207.05,206.94,14.03248579]
[1736273287952,20.0,207.05,206.93,26.11328579]
[1736273288450,20.0,207.05,206.94,37.80936979]
[1736273288828,20.0,207.05,206.94,40.44603396]
[1736273289031,20.0,207.05,206.94,26.41354817]
[1736273289361,15.4138,207.08,206.96,14.03248579]
[1736273289551,15.4138,207.08,206.97,14.03248579]
[1736273289855,15.4138,207.08,206.93,17.0809]
[1736273289856,15.4138,207.08,206.99,37.80936979]
[1736273290032,15.4138,207.08,207.0,14.03248579]
[1736273290230,15.4138,207.08,207.01,14.03248579]
[1736273290435,15.4138,207.08,206.99,37.80936979]
[1736273290737,15.4138,207.08,206.99,14.03248579]
[1736273290933,15.4138,207.08,207.0,14.03248579]
[1736273291242,15.4138,207.08,206.99,14.03248579]
[1736273294255,15.4138,207.08,207.0,14.03248579]
[1736273294632,15.4138,207.08,206.99,14.03248579]
[1736273295246,15.4138,207.08,207.0,14.03248579]
[1736273298567,15.4138,207.08,206.98,38.53370347]
[1736273299370,15.4138,207.08,206.98,37.80936979]
[1736273300635,15.4138,207.08,206.98,23.776884]
[1736273302663,15.4138,207.08,206.97,23.776884]
[1736273302960,15.4138,207.08,206.94,26.11308579]
[1736273303165,15.4138,207.08,206.94,29.01308579]
[1736273303546,15.4138,207.08,206.95,2.64138261]
[1736273303862,20.0,207.05,206.96,2.64138261]
[1736273304645,20.0,207.05,206.92,23.776884]
[1736273304646,20.0,207.05,206.91,2.9]
[1736273305171,20.0,207.05,206.92,2.64526919]
[1736273305572,20.0,207.05,206.93,2.64526919]
[1736273305738,3.1263,207.04,206.93,2.64526919]
[1736273306054,13.3269,207.03,206.93,2.64526919]
[1736273306364,13.3269,207.03,206.94,2.64526919]
[1736273306666,13.3269,207.03,206.95,2.64526919]
[1736273307359,13.3269,207.03,206.91,2.9]
[1736273307664,13.3269,207.03,206.92,37.80936979]
[1736273308448,13.3269,207.03,206.94,37.80936979]
[1736273308649,13.3269,207.03,206.95,23.776884]
[1736273308951,13.3269,207.03,206.95,26.4238658]
[1736273309459,13.3269,207.03,206.96,2.6469818]
[1736273310062,13.3269,207.03,206.92,23.776884]
[1736273310766,13.3269,207.03,206.93,2.64983271]
[1736273311268,13.3269,207.03,206.92,23.776884]
[1736273316765,13.3269,207.03,206.92,37.80936979]
[1736273316981,13.3269,207.03,206.92,23.776884]
[1736273317185,13.3269,207.03,206.95,37.80936979]
[1736273317344,13.3269,207.03,206.96,23.776884]
[1736273317542,13.3269,207.03,206.98,14.03248579]
[1736273317745,3.1263,207.04,207.0,23.776884]
[1736273320070,3.1263,207.04,206.99,2.9]
[1736273321688,3.1263,207.04,207.0,23.776884]
[1736273321850,12.2703,207.08,207.0,23.776884]
[1736273322251,12.2703,207.08,207.0,37.80936979]
[1736273323272,12.2703,207.08,207.0,23.776884]
[1736273323576,12.2703,207.08,207.0,37.80936979]
[1736273323962,12.2703,207.08,207.0,23.776884]
[1736273324662,12.2703,207.08,207.0,37.80936979]
[1736273327656,12.2703,207.08,206.96,7.58670824]
[1736273328269,12.2703,207.08,206.95,2.9]
[1736273328270,12.2703,207.08,206.97,23.776884]
[1736273328687,12.2703,207.08,206.96,23.776884]
[1736273328855,12.2703,207.08,206.96,37.80936979]
[1736273329172,12.2703,207.08,206.99,23.776884]
[1736273329351,12.2703,207.08,206.99,14.03248579]
[1736273329557,12.2703,207.08,206.99,23.776884]
[1736273329777,12.2703,207.08,206.95,16.93248579]
[1736273329967,12.2703,207.08,206.96,14.03248579]
[1736273330282,12.2703,207.08,206.97,23.776884]
[1736273331782,12.2703,207.08,206.97,14.03248579]
[1736273331983,12.2703,207.08,206.98,14.03248579]
[1736273332287,12.2703,207.08,206.97,14.03248579]
[1736273333288,0.12549,207.07,206.98,8.96859687]
[1736273333882,0.12549,207.07,207.0,8.96859687]
[1736273334387,0.12549,207.07,207.01,23.776884]
[1736273334759,0.12549,207.07,207.01,8.96859687]
[1736273335567,0.12549,207.07,206.99,8.96859687]
[1736273335770,0.12549,207.07,206.98,2.88]
[1736273335984,0.12549,207.07,206.99,32.74548087]
[1736273336981,0.12549,207.07,207.0,23.776884]
[1736273337372,0.12549,207.07,206.99,32.74548087]
[1736273337686,0.12549,207.07,207.0,32.74548087]
[1736273338386,0.12549,207.07,206.99,32.74548087]
[1736273338760,0.12549,207.07,207.0,8.96859687]
[1736273338964,0.12549,207.07,206.99,32.74548087]
[1736273341174,101.634267,207.19,206.99,32.74548087]
[1736273341175,35.014767,207.19,207.06,8.96859687]
[1736273341376,35.014767,207.19,207.0,36.72423984]
[1736273341377,15.6805,207.19,207.08,8.96859687]
[1736273341585,15.6805,207.19,207.03,23.776884]
[1736273341586,0.12549,207.18,207.07,8.96859687]
[1736273341778,0.12549,207.15,207.06,8.96859687]
[1736273342312,0.12549,207.15,207.05,8.96859687]
[1736273342503,0.12549,207.13,207.03,32.74548087]
[1736273342873,0.12549,207.13,207.03,23.776884]
[1736273343172,0.12549,207.13,207.03,8.96859687]
[1736273343598,0.12549,207.13,207.03,23.776884]
[1736273343799,0.12549,207.13,207.03,32.74548087]
[1736273344700,0.12549,207.13,207.04,8.96859687]
[1736273344890,0.12549,207.13,207.02,23.776884]
[1736273344891,0.12549,207.13,207.05,8.96859687]
[1736273345094,0.12549,207.13,207.04,8.96859687]
[1736273345703,0.12549,207.13,207.03,8.96859687]
[1736273349192,0.12549,207.13,207.04,8.96859687]
[1736273349390,0.12549,207.13,207.06,8.96859687]
[1736273349708,0.12549,207.13,207.07,8.96859687]
[1736273349881,0.12549,207.13,207.08,8.96859687]
[1736273350282,0.12549,207.13,207.05,23.776884]
[1736273350482,0.12549,207.13,207.06,8.96859687]
[1736273353188,0.12549,207.13,207.07,8.96859687]
[1736273353604,0.12549,207.13,207.08,32.74548087]
[1736273353778,0.12549,207.13,207.09,8.96859687]
[1736273353980,15.6832,207.19,207.12,8.96859687]
[1736273354198,15.6832,207.19,207.13,8.96859687]
[1736273354600,0.12549,207.18,207.13,8.96859687]
[1736273355110,15.80869,207.25,207.12,32.74548087]
[1736273355297,0.12549,207.21,207.13,13.99455551]
[1736273355483,0.12549,207.21,207.12,13.99455551]
[1736273355912,0.12549,207.21,207.12,23.776884]
[1736273356613,0.12549,207.21,207.13,13.99455551]
[1736273357013,0.12549,207.21,207.15,13.99455551]
[1736273357428,0.12549,207.21,207.16,13.99455551]
[1736273357614,0.12549,207.21,207.14,23.776884]
[1736273358014,0.12549,207.21,207.16,13.99455551]
[1736273358216,0.12549,207.21,207.16,23.776884]
[1736273358808,0.12549,207.21,207.13,13.99455551]
[1736273359431,0.12549,207.21,207.15,13.99455551]
[1736273359641,0.12549,207.21,207.14,13.99455551]
[1736273360733,0.12549,207.21,207.15,13.99455551]
[1736273361438,0.12549,207.21,207.16,13.99455551]
[1736273361928,0.12549,207.21,207.13,23.776884]
[1736273361929,0.12549,207.21,207.15,13.99455551]
[1736273362440,0.12549,207.21,207.13,13.99455551]
[1736273363121,0.12549,207.21,207.13,23.776884]
[1736273363536,0.12549,207.21,207.13,13.99455551]
[1736273363911,0.12549,207.21,207.14,13.99455551]
[1736273364112,0.12549,207.21,207.15,13.99455551]
[1736273364739,0.12549,207.21,207.16,13.99455551]
[1736273365337,15.6832,207.25,207.16,13.99455551]
[1736273365540,0.12549,207.24,207.17,13.99455551]
[1736273365733,15.1832,207.25,207.16,13.99455551]
[1736273366044,15.1832,207.25,207.15,13.99455551]
[1736273367447,15.1832,207.25,207.16,13.99455551]
[1736273368533,15.1832,207.25,207.15,13.99455551]
[1736273369440,15.1832,207.25,207.16,13.99455551]
[1736273371239,15.1832,207.25,207.15,13.99455551]
[1736273372358,15.1832,207.25,207.12,13.99455551]
[1736273372536,0.12549,207.21,207.11,2.86]
[1736273372742,0.12549,207.21,207.12,23.776884]
[1736273373048,0.12549,207.21,207.1,13.99455551]
[1736273373258,0.12549,207.21,207.09,16.85455551]
[1736273373764,0.12549,207.17,207.1,23.776884]
[1736273374252,0.12549,207.17,207.06,13.99455551]
[1736273374443,0.12549,207.17,207.06,16.85455551]
[1736273375053,0.12549,207.17,207.06,13.99455551]
[1736273375360,0.12549,207.17,207.06,8.96211996]
[1736273375738,0.12549,207.17,207.07,23.776884]
[1736273376966,0.12549,207.15,207.04,0.72402178]
[1736273377137,0.12549,207.15,207.03,11.82211996]
[1736273377543,0.12549,207.12,207.03,2.86]
[1736273377859,0.12549,207.12,207.03,11.82211996]
[1736273378033,0.12549,207.12,207.05,8.96211996]
[1736273380063,15.2592,207.16,207.08,8.96211996]
[1736273380564,0.12549,207.15,207.08,8.96211996]
[1736273380856,0.12549,207.15,207.07,8.96211996]
[1736273383563,0.12549,207.15,207.1,8.96211996]
[1736273384879,0.12549,207.15,207.13,8.96211996]
[1736273385464,2.86,207.26,207.13,8.96211996]
[1736273385465,20.12549,207.22,207.13,8.96211996]
[1736273385758,0.12549,207.22,207.14,8.96211996]
[1736273385970,16.0783,207.25,207.14,8.96211996]
[1736273386167,0.12549,207.24,207.15,8.96211996]
[1736273387462,0.12549,207.21,207.15,8.96211996]
[1736273387767,0.12549,207.21,207.14,8.96211996]
[1736273388264,0.12549,207.21,207.15,8.96211996]
[1736273388465,0.12549,207.21,207.14,8.96211996]
[1736273388761,0.12549,207.21,207.13,8.96211996]
[1736273389061,0.12549,207.21,207.14,8.96211996]
[1736273390962,0.12549,207.21,207.16,8.96211996]
[1736273391460,0.12549,207.21,207.15,8.96211996]
[1736273392667,0.12549,207.21,207.14,8.96211996]
[1736273393242,0.12549,207.21,207.12,23.776884]
[1736273393438,0.12549,207.21,207.12,8.96211996]
[1736273394954,0.12549,207.21,207.13,8.96211996]
[1736273395759,0.12549,207.21,207.14,8.96211996]
[1736273396145,0.12549,207.21,207.15,23.776884]
[1736273396366,0.12549,207.21,207.15,32.73900396]
[1736273400558,0.12549,207.24,207.15,32.73900396]
[1736273400963,0.12549,207.24,207.16,8.96211996]
[1736273401370,0.12549,207.24,207.17,8.96211996]
[1736273402078,0.12549,207.24,207.12,0.72380943]
[1736273402282,0.12549,207.24,207.17,8.96211996]
[1736273402580,0.12549,207.24,207.19,8.96211996]
[1736273402760,0.12549,207.24,207.2,8.96211996]
[1736273402961,0.12549,207.24,207.21,8.96211996]
[1736273403358,0.12549,207.29,207.21,23.776884]
[1736273403558,2.00351235,207.29,207.21,23.776884]
[1736273403781,0.12549,207.29,207.21,23.776884]
[1736273405177,0.12549,207.29,207.21,8.96211996]
[1736273405680,0.12549,207.29,207.21,23.776884]
[1736273406580,0.12549,207.29,207.17,2.86]
[1736273406881,0.12549,207.29,207.19,8.96211996]
[1736273407371,0.12549,207.29,207.17,2.86]
[1736273407577,0.12549,207.26,207.17,2.86]
[1736273407777,0.12549,207.26,207.17,23.776884]
[1736273407965,0.12549,207.26,207.16,8.96211996]
[1736273408866,0.12549,207.26,207.17,8.96211996]
[1736273409267,0.12549,207.26,207.14,2.86]
[1736273409268,0.12549,207.26,207.14,23.776884]
[1736273409486,3.0979,207.25,207.14,32.73900396]
[1736273409780,0.12549,207.22,207.13,2.86]
[1736273409973,0.12549,207.22,207.13,11.82211996]
[1736273410170,0.12549,207.22,207.12,8.96211996]
[1736273410367,0.12549,207.22,207.09,7.58670824]
[1736273410567,0.12549,207.19,207.07,10.44670824]
[1736273410780,0.12549,207.19,207.08,8.96211996]
[1736273411089,0.12549,207.19,207.1,8.96211996]
[1736273411461,0.12549,207.19,207.09,8.96211996]
[1736273411678,0.12549,207.17,207.09,8.96211996]
[1736273413994,0.12549,207.17,207.05,0.72400098]
[1736273413995,0.12549,207.15,207.07,32.73900396]
[1736273414361,0.12549,207.15,207.08,8.96211996]
[1736273414784,0.12549,207.15,207.06,8.96211996]
[1736273414988,0.12549,207.15,207.08,8.96211996]
[1736273415186,0.12549,207.15,207.09,8.96211996]
[1736273416288,0.12549,207.15,207.1,8.96211996]
[1736273416785,0.12549,207.15,207.09,8.96211996]
[1736273417191,0.12549,207.15,207.06,23.776884]
[1736273417568,0.12549,207.15,207.08,8.96211996]
[1736273417968,0.12549,207.15,207.09,8.96211996]
[1736273420089,0.12549,207.15,207.08,8.96211996]
[1736273420281,0.12549,207.15,207.09,8.96211996]
[1736273420990,0.12549,207.15,207.1,8.96211996]
[1736273422491,0.12549,207.15,207.09,8.96211996]
[1736273423006,0.12549,207.15,207.08,8.96211996]
[1736273423299,0.12549,207.15,207.05,8.96211996]
[1736273423484,0.12549,207.15,207.03,6.62296795]
[1736273423688,0.12549,207.15,207.07,8.96211996]
[1736273423995,12.49362522,207.16,207.07,8.96211996]
[1736273426894,12.49362522,207.16,207.06,8.96211996]
[1736273427207,12.49362522,207.16,207.04,23.776884]
[1736273427383,12.49362522,207.16,207.09,8.96211996]
[1736273427584,12.49362522,207.16,207.08,8.96211996]
[1736273427907,12.49362522,207.16,207.07,8.96211996]
[1736273429206,0.12549,207.12,207.03,0.72416157]
[1736273429501,0.12549,207.12,207.02,7.58670824]
[1736273429502,0.12549,207.11,207.02,16.5488282]
[1736273429690,0.12549,207.11,207.03,23.776884]
[1736273429885,0.12549,207.11,207.03,32.73900396]
[1736273430493,0.12549,207.11,207.0,0.72416528]
[1736273430811,0.12549,207.11,207.03,23.776884]
[1736273432406,0.12549,207.11,206.98,7.58670824]
[1736273432593,0.12549,207.11,207.0,8.96211996]
[1736273432794,0.12549,207.09,206.98,16.5488282]
[1736273433104,0.12549,207.09,206.99,23.776884]
[1736273433286,0.12549,207.09,206.99,32.73900396]
[1736273434123,0.12549,207.09,207.02,8.96211996]
[1736273435114,0.12549,207.09,207.03,8.96211996]
[1736273436493,0.12549,207.09,207.02,8.96211996]
[1736273436993,0.12549,207.09,207.01,8.96211996]
[1736273437219,0.12549,207.09,206.98,7.58670824]
[1736273437422,0.12549,207.09,207.0,8.96211996]
[1736273438837,0.12549,207.09,206.99,8.96211996]
[1736273440238,0.12549,207.09,207.01,8.96211996]
[1736273440516,0.12549,207.09,207.03,8.96211996]
[1736273440823,0.12549,207.09,207.02,8.96211996]
[1736273441120,0.12549,207.09,207.01,8.96211996]
[1736273441800,0.12549,207.09,207.03,8.96211996]
[1736273442004,0.12549,207.09,207.01,8.96211996]
[1736273442536,0.12549,207.09,207.05,8.96211996]
[1736273442705,0.12549,207.09,207.04,8.96211996]
[1736273443508,0.12549,207.09,207.03,8.96211996]
[1736273444026,0.12549,207.09,206.97,0.72440946]
[1736273444220,0.12549,207.09,207.01,8.96211996]
[1736273444616,0.12549,207.09,207.02,8.96211996]
[1736273447135,0.12549,207.09,207.03,8.96211996]
[1736273447306,0.12549,207.09,207.02,8.96211996]
[1736273447706,0.12549,207.09,207.05,8.96211996]
[1736273450313,0.12549,207.09,207.01,0.72430186]
[1736273450314,0.12549,207.09,207.06,8.96211996]
[1736273450643,0.12549,207.09,207.05,8.96211996]
[1736273450839,0.12549,207.09,207.04,8.96211996]
[1736273451220,0.12549,207.09,207.05,8.96211996]
[1736273452426,0.12549,207.09,207.01,0.72430186]
[1736273452629,0.12549,207.09,207.03,8.96211996]
[1736273453421,11.9339,207.21,207.09,23.776884]
[1736273453743,0.12549,207.2,207.11,8.96211996]
[1736273453921,0.12549,207.2,207.1,8.96211996]
[1736273454123,0.12549,207.2,207.09,8.96211996]
[1736273455543,0.12549,207.2,207.1,8.96211996]
[1736273456119,0.12549,207.2,207.11,8.96211996]
[1736273457246,0.12549,207.2,207.12,8.96211996]
[1736273458939,0.12549,207.2,207.06,3.72725113]
[1736273459117,0.12549,207.2,207.09,32.73900396]
[1736273459319,0.12549,207.2,207.1,8.96211996]
[1736273460147,0.12549,207.2,207.11,8.96211996]
[1736273460740,0.12549,207.2,207.1,8.96211996]
[1736273460946,0.12549,207.2,207.09,32.73900396]
[1736273461244,0.12549,207.17,207.06,3.72725113]
[1736273461432,0.12549,207.17,207.07,8.96211996]
[1736273461633,0.12549,207.17,207.08,23.776884]
[1736273462374,0.12549,207.17,207.06,23.776884]
[1736273462529,0.12549,207.17,207.08,8.96211996]
[1736273463064,0.12549,207.17,207.06,8.96211996]
[1736273463366,3.0806,207.16,207.06,8.96211996]
[1736273464366,3.0806,207.16,207.06,23.776884]
[1736273465269,3.0806,207.16,207.02,10.42670824]
[1736273465270,12.3934,207.15,207.02,10.42670824]
[1736273465434,12.3934,207.15,207.05,8.96211996]
[1736273465651,12.3934,207.15,207.04,8.96211996]
[1736273465851,12.3934,207.15,207.03,8.96211996]